bitfinex/quotes_BTCUSD_20251230
["timestamp","ask_amount","ask_price","bid_price","bid_amount"]
[1767113426663,0.01136,88698.0,88687.0,0.00024626]
[1767113429474,0.01136,88698.0,88674.0,0.29037]
[1767113429475,0.01127624,88682.0,88674.0,0.29037]
[1767113429686,0.01127573,88686.0,88674.0,8.833e-05]
[1767113429887,0.2837356,88687.0,88674.0,8.833e-05]
[1767113429888,0.27246,88687.0,88674.0,8.833e-05]
[1767113430019,0.01127586,88685.0,88674.0,8.833e-05]
[1767113430236,0.01127599,88684.0,88674.0,8.833e-05]
[1767113430443,0.01127573,88686.0,88674.0,8.833e-05]
[1767113430670,0.01127599,88684.0,88674.0,8.833e-05]
[1767113430883,0.01127586,88685.0,88674.0,8.833e-05]
[1767113431233,0.01127688,88677.0,88674.0,8.833e-05]
[1767113431434,0.01127688,88677.0,88668.0,0.01131806]
[1767113431435,0.056389,88670.0,88668.0,0.01131806]
[1767113431637,0.01127764,88671.0,88659.0,0.29037]
[1767113431638,0.00035512,88668.0,88662.0,0.01136]
[1767113431844,0.00046184,88668.0,88662.0,0.30173]
[1767113432048,0.00010672,88668.0,88662.0,0.30173]
[1767113432477,0.00010672,88668.0,88651.0,0.04512]
[1767113432478,0.01127891,88661.0,88653.0,0.29037]
[1767113432679,0.01127853,88664.0,88653.0,0.29037]
[1767113432680,0.01127866,88663.0,88661.0,0.000106]
[1767113433069,0.01127878,88662.0,88659.0,0.29037]
[1767113433243,0.01127866,88663.0,88659.0,0.29037]
[1767113433900,0.06767043,88665.0,88659.0,0.29037]
[1767113434092,0.01127866,88663.0,88659.0,0.29037]
[1767113434293,0.01127853,88664.0,88659.0,0.29037]
[1767113434506,0.01127866,88663.0,88659.0,0.29037]
[1767113434708,0.01127853,88664.0,88659.0,0.29037]
[1767113435683,0.06767043,88665.0,88659.0,0.29037]
[1767113435684,0.0112784,88665.0,88659.0,0.29037]
[1767113435887,0.01127853,88664.0,88659.0,0.29037]
[1767113436095,0.06766934,88667.0,88644.0,0.04512]
[1767113436096,0.01127967,88655.0,88644.0,0.04512]
[1767113436266,0.05639996,88653.0,88646.0,0.01136]
[1767113436489,0.01128044,88649.0,88646.0,0.01136]
[1767113436893,0.06768296,88649.0,88646.0,0.01136]
[1767113437091,0.01128044,88649.0,88646.0,0.01136]
[1767113437501,0.0676829,88649.0,88646.0,0.009606]
[1767113437773,0.06768112,88651.0,88646.0,0.009606]
[1767113437962,0.0112798,88654.0,88651.0,0.000106]
[1767113438535,0.01128006,88652.0,88646.0,0.009606]
[1767113438739,0.01127993,88653.0,88646.0,0.009606]
[1767113438938,0.01128006,88652.0,88646.0,0.009606]
[1767113440227,0.0112798,88654.0,88652.0,0.000549]
[1767113440614,0.01127993,88653.0,88646.0,0.009606]
[1767113440816,0.0112798,88654.0,88646.0,0.009606]
[1767113441012,0.0676796,88653.0,88646.0,0.009606]
[1767113441270,0.01128044,88649.0,88646.0,0.009606]
[1767113441462,0.01128018,88651.0,88639.0,0.0002]
[1767113441463,0.27246,88648.0,88640.0,0.01136]
[1767113441676,0.01128044,88649.0,88640.0,0.01136]
[1767113442198,0.01128044,88649.0,88639.0,0.0002]
[1767113442199,0.27246,88647.0,88639.0,0.0002]
[1767113442349,0.01128082,88646.0,88639.0,0.0002]
[1767113442556,0.27246,88643.0,88631.0,0.29037]
[1767113442763,0.01128133,88642.0,88631.0,0.29037]
[1767113442956,0.27246,88643.0,88631.0,0.29037]
[1767113443160,0.2837412,88643.0,88631.0,0.29037]
[1767113443365,0.01128158,88640.0,88631.0,0.29037]
[1767113443588,0.01128146,88641.0,88631.0,0.29037]
[1767113443739,0.0112812,88643.0,88631.0,0.29037]
[1767113443946,0.01128133,88642.0,88631.0,0.29037]
[1767113444447,0.01128133,88642.0,88620.0,0.54631466]
[1767113444448,0.01128184,88638.0,88620.0,0.54631466]
[1767113444666,0.01136,88641.0,88638.0,0.290919]
[1767113444883,9.218e-05,88642.0,88641.0,0.00055]
[1767113446297,0.28177,88641.0,88638.0,0.000549]
[1767113446497,0.29305158,88640.0,88627.0,0.01156]
[1767113447121,0.28177,88640.0,88627.0,0.01156]
[1767113448200,0.28177,88640.0,88627.0,0.0002]
[1767113448691,0.06767851,88655.0,88631.0,0.27163]
[1767113448864,0.0226398,88654.0,88631.0,0.27198579]
[1767113449077,0.01128006,88652.0,88631.0,0.27198579]
[1767113449479,0.01128031,88650.0,88631.0,0.27198579]
[1767113449822,0.01128082,88646.0,88631.0,0.27198579]
[1767113449943,0.34945073,88652.0,88631.0,0.27198579]
[1767113450146,0.01136,88651.0,88631.0,0.27198579]
[1767113450366,0.01128031,88650.0,88631.0,0.27198579]
[1767113450657,0.06776156,88651.0,88631.0,0.27198579]
[1767113450658,0.01136,88651.0,88631.0,0.27198579]
[1767113450855,0.01128057,88648.0,88631.0,0.27198579]
[1767113451125,0.01128069,88647.0,88631.0,0.27198579]
[1767113451322,0.01128057,88648.0,88631.0,0.27198579]
[1767113451986,0.01128069,88647.0,88631.0,0.27198579]
[1767113452302,0.01128044,88649.0,88631.0,0.27198579]
[1767113452861,0.01136,88651.0,88627.0,0.0002]
[1767113452862,0.01128273,88631.0,88627.0,0.0002]
[1767113453063,0.01163918,88631.0,88627.0,0.0002]
[1767113453263,0.00035645,88631.0,88627.0,0.0002]
[1767113454661,0.00563236,88632.0,88627.0,0.0002]
[1767113454861,0.28177,88641.0,88628.0,0.27163]
[1767113455088,0.04516,88663.0,88643.0,0.27163]
[1767113455261,0.01136,88664.0,88648.0,0.27163]
[1767113455717,0.01136,88664.0,88651.0,0.01128018]
[1767113456013,0.55759115,88680.0,88657.0,0.27163]
[1767113456014,0.01136,88670.0,88657.0,0.27163]
[1767113456435,0.28177,88677.0,88657.0,0.27163]
[1767113456658,0.01136,88671.0,88657.0,0.27163]
[1767113457240,0.28177,88669.0,88651.0,0.01136]
[1767113457454,0.28177,88660.0,88636.0,0.27163]
[1767113457745,0.28177,88658.0,88637.0,0.01136]
[1767113457974,0.28177,88656.0,88637.0,0.01136]
[1767113458406,0.28177,88656.0,88637.0,0.29427197]
[1767113458609,0.28177,88656.0,88637.0,0.35068123]
[1767113458825,0.28177,88656.0,88639.0,0.01128171]
[1767113459042,0.28177,88656.0,88640.0,0.01128158]
[1767113459233,0.28177,88656.0,88639.0,0.01128171]
[1767113459664,0.28177,88656.0,88638.0,0.01128184]
[1767113460073,0.28177,88656.0,88639.0,0.01128171]
[1767113460305,0.27309,88663.0,88640.0,0.54631466]
[1767113460553,3.11e-06,88662.0,88651.0,0.29374]
[1767113460763,0.01136,88668.0,88651.0,0.29374]
[1767113461695,0.01136,88668.0,88651.0,0.01128018]
[1767113461897,0.01136,88670.0,88659.0,0.29374]
[1767113462314,0.00010694,88671.0,88659.0,0.29374]
[1767113465576,0.00010694,88671.0,88655.0,0.01127967]
[1767113465860,0.00010694,88671.0,88660.0,0.54631466]
[1767113465987,0.00010694,88671.0,88657.0,0.05639712]
[1767113465988,0.01136,88681.0,88669.0,0.29374]
[1767113466175,0.01136,88683.0,88669.0,0.29374]
[1767113466591,0.27309,88685.0,88670.0,0.06766662]
[1767113466804,0.0003968,88692.0,88674.0,0.30501726]
[1767113467006,0.2734868,88692.0,88680.0,0.54631466]
[1767113467228,0.2734868,88692.0,88676.0,0.29374]
[1767113467660,0.0003968,88692.0,88676.0,0.29374]
[1767113468088,0.0003968,88692.0,88676.0,0.305017]
[1767113468293,0.0003968,88692.0,88680.0,0.54631466]
[1767113470092,0.00035436,88692.0,88680.0,0.54631466]
[1767113471481,0.00035436,88692.0,88680.0,0.84005466]
[1767113472850,0.00035436,88692.0,88680.0,0.29374]
[1767113474632,0.00035436,88692.0,88611.0,0.27636136]
[1767113474951,0.27309,88679.0,88654.0,0.29374]
[1767113475102,0.27309,88677.0,88656.0,0.29374]
[1767113475303,0.28436688,88677.0,88656.0,0.29374]
[1767113475505,0.27309,88675.0,88660.0,0.54631466]
[1767113475748,0.28436726,88674.0,88656.0,0.29374]
[1767113475923,0.28445,88674.0,88655.0,0.01136]
[1767113476125,0.29218,88670.0,88655.0,0.01136]
[1767113476387,0.30345789,88669.0,88655.0,0.01136]
[1767113476591,0.29218,88669.0,88655.0,0.01136]
[1767113476796,0.1284452,88669.0,88655.0,0.01136]
[1767113476949,0.01136,88674.0,88655.0,0.30154]
[1767113477149,0.30345637,88681.0,88661.0,0.29018]
[1767113477356,0.54631466,88700.0,88655.0,0.02263967]
[1767113477357,0.01136,88680.0,88670.0,0.54631466]
[1767113477532,0.01136,88679.0,88670.0,0.54631466]
[1767113477914,0.30345611,88683.0,88667.0,0.29018]
[1767113478120,0.01136,88682.0,88667.0,0.29018]
[1767113479012,0.02263624,88682.0,88667.0,0.29018]
[1767113479589,0.01136,88682.0,88667.0,0.29018]
[1767113480534,0.01127688,88677.0,88663.0,0.01136]
[1767113480674,0.01127675,88678.0,88663.0,0.01136]
[1767113480878,0.06766128,88677.0,88663.0,0.01136]
[1767113481077,0.01127688,88677.0,88663.0,0.01136]
[1767113481694,0.05639895,88655.0,88630.0,0.54631466]
[1767113481902,0.05639895,88655.0,88611.0,0.06060892]
[1767113481903,0.0112812,88643.0,88631.0,0.29018]
[1767113482103,0.01128095,88645.0,88631.0,0.29018]
[1767113482361,0.0676862,88645.0,88631.0,0.29018]
[1767113482493,0.01128158,88640.0,88631.0,0.29018]
[1767113482675,0.01128158,88640.0,88628.0,0.01136]
[1767113482676,0.01128184,88638.0,88628.0,0.01136]
[1767113482883,0.01128171,88639.0,88628.0,9.218e-05]
[1767113483084,0.01136,88638.0,88628.0,9.218e-05]
[1767113483932,0.01236,88651.0,88629.0,0.29018]
[1767113484151,0.01136,88650.0,88630.0,0.29018]
[1767113486024,0.01136,88649.0,88630.0,0.29018]
[1767113487060,0.02364057,88648.0,88630.0,0.29018]
[1767113487261,0.05640348,88647.0,88631.0,0.30154]
[1767113487481,0.01128082,88646.0,88631.0,0.30154]
[1767113487682,0.01128069,88647.0,88631.0,0.30154]
[1767113487886,0.01236,88648.0,88631.0,0.30154]
[1767113488843,0.02364057,88648.0,88631.0,0.30154]
[1767113489057,0.01128069,88647.0,88631.0,0.30154]
[1767113489263,0.02364057,88648.0,88631.0,0.30154]
[1767113489878,0.01128069,88647.0,88631.0,0.30154]
[1767113490841,0.01236,88644.0,88631.0,0.01136]
[1767113491258,0.01236,88645.0,88631.0,0.01136]
[1767113491591,0.01236,88644.0,88631.0,0.01136]
[1767113491923,0.01236,88640.0,88628.0,9.218e-05]
[1767113492125,0.01236,88638.0,88628.0,9.218e-05]
[1767113492915,0.01136,88639.0,88628.0,9.218e-05]
[1767113493149,0.01136,88638.0,88629.0,0.29018]
[1767113493348,0.01136,88642.0,88629.0,0.29018]
[1767113493528,0.01136,88646.0,88631.0,0.29018]
[1767113493694,0.01136,88648.0,88631.0,0.29018]
[1767113494768,0.01236,88657.0,88633.0,0.01128247]
[1767113494968,0.01136,88656.0,88636.0,0.29018]
[1767113495167,0.02263955,88656.0,88638.0,0.29018]
[1767113495598,0.06767838,88655.0,88638.0,0.29018]
[1767113495747,0.0112798,88654.0,88638.0,0.29018]
[1767113495962,0.01128006,88652.0,88638.0,0.29018]
[1767113496322,0.06767935,88654.0,88638.0,0.28307]
[1767113496480,0.01127993,88653.0,88638.0,0.28307]
[1767113496880,0.01947,88652.0,88637.0,0.01136]
[1767113497060,0.01947,88650.0,88637.0,0.01131874]
[1767113497401,0.01127993,88653.0,88637.0,0.01131874]
[1767113497818,0.01947,88655.0,88638.0,0.29018]
[1767113498354,0.01127917,88659.0,88638.0,0.29018]
[1767113498560,0.01136,88658.0,88638.0,0.29018]
[1767113498769,0.02263929,88658.0,88638.0,0.29018]
[1767113498974,0.01127929,88658.0,88638.0,0.29018]
[1767113499172,0.02263917,88659.0,88638.0,0.29018]
[1767113499383,0.01127828,88666.0,88641.0,0.29018]
[1767113499584,0.22554553,88674.0,88646.0,0.29018]
[1767113499585,0.01127751,88672.0,88646.0,0.29018]
[1767113499788,0.02263815,88667.0,88648.0,0.29018]
[1767113500213,0.01127828,88666.0,88648.0,0.29018]
[1767113500394,0.02263815,88667.0,88648.0,0.29013726]
[1767113500992,0.01127853,88664.0,88648.0,0.29013726]
[1767113501195,0.01127866,88663.0,88648.0,0.29009377]
[1767113501433,0.01127891,88661.0,88647.0,0.01136]
[1767113502153,0.01127904,88660.0,88647.0,0.01136]
[1767113502379,0.01128057,88648.0,88629.0,0.29018]
[1767113502507,0.01128069,88647.0,88630.0,0.30154]
[1767113502708,0.01128082,88646.0,88630.0,0.30154]
[1767113503208,0.08727309,88649.0,88630.0,0.30149751]
[1767113503415,0.01959,88649.0,88630.0,0.30149751]
[1767113503793,0.2255734,88663.0,88632.0,0.3014626]
[1767113503794,0.01136,88652.0,88632.0,0.3014626]
[1767113503949,0.01136,88652.0,88633.0,0.29018]
[1767113505234,0.01128018,88651.0,88633.0,0.29018]
[1767113505487,0.02264006,88652.0,88633.0,0.29018]
[1767113505681,0.01128044,88649.0,88633.0,0.29018]
[1767113506789,0.01128082,88646.0,88633.0,0.29018]
[1767113507571,0.01128069,88647.0,88633.0,0.29018]
[1767113508089,0.01128095,88645.0,88633.0,0.29018]
[1767113508286,0.01128095,88645.0,88634.0,0.01136]
[1767113508486,0.01128082,88646.0,88634.0,0.01136]
[1767113509069,0.01128069,88647.0,88634.0,0.01136]
[1767113509472,0.01128082,88646.0,88634.0,0.01136]
[1767113509892,0.01959,88645.0,88634.0,0.01136]
[1767113510094,0.06768384,88648.0,88634.0,0.01136]
[1767113510095,0.01128057,88648.0,88634.0,0.01136]
[1767113510317,0.01128044,88649.0,88634.0,0.01136]
[1767113510670,0.01128057,88648.0,88635.0,0.27579]
[1767113510944,0.01128069,88647.0,88635.0,0.27579]
[1767113511151,0.01128184,88638.0,88634.0,0.01136]
[1767113511351,0.01959,88635.0,88628.0,2.18e-06]
[1767113511506,0.0112812,88643.0,88628.0,0.27579218]
[1767113511715,0.01128184,88638.0,88628.0,0.27579218]
[1767113511893,0.01128209,88636.0,88628.0,0.27579218]
[1767113512100,0.01128197,88637.0,88628.0,0.27579218]
[1767113512850,0.01128146,88641.0,88628.0,0.27579218]
[1767113512999,0.01128184,88638.0,88628.0,0.27579218]
[1767113513199,0.01128171,88639.0,88628.0,0.27579218]
[1767113513406,0.06769075,88639.0,88628.0,0.27579218]
[1767113513610,0.01128209,88636.0,88627.0,0.0002]
[1767113513812,0.03914,88632.0,88627.0,0.0002]
[1767113514196,0.01138893,88636.0,88627.0,0.0002]
[1767113514197,0.06779991,88636.0,88627.0,0.0002]
[1767113514407,0.01128247,88633.0,88627.0,0.0002]
[1767113514681,0.01128235,88634.0,88627.0,0.0002]
[1767113514837,0.01128247,88633.0,88627.0,0.0002]
[1767113515442,0.0112826,88632.0,88623.0,0.01136]
[1767113515651,0.06769622,88632.0,88623.0,0.01136]
[1767113515846,0.01128273,88631.0,88623.0,0.01136]
[1767113516050,0.01128273,88631.0,88616.0,0.0002273]
[1767113516051,0.000899,88623.0,88616.0,0.0002273]
[1767113516250,0.01128349,88625.0,88616.0,0.0002273]
[1767113516448,0.05,88625.0,88616.0,0.0002273]
[1767113518917,0.05,88625.0,88616.0,0.2832573]
[1767113519260,0.0498,88625.0,88616.0,0.2832573]
[1767113519775,0.01128286,88630.0,88616.0,0.2832573]
[1767113520013,0.01128273,88631.0,88616.0,0.2832573]
[1767113520215,0.01128197,88637.0,88616.0,0.2832573]
[1767113520419,0.81340363,88640.0,88621.0,0.28303]
[1767113520420,0.01128158,88640.0,88621.0,0.28303]
[1767113520661,0.02411649,88647.0,88628.0,0.28303]
[1767113520868,0.06058656,88667.0,88637.0,0.01128197]
[1767113520869,0.05639352,88663.0,88637.0,0.01128197]
[1767113521078,0.01127777,88670.0,88640.0,0.29431158]
[1767113521225,0.01127815,88667.0,88645.0,0.28303]
[1767113521580,0.01127815,88667.0,88640.0,0.06768906]
[1767113521581,0.06173,88656.0,88640.0,0.28303]
[1767113521761,0.0112784,88665.0,88646.0,0.29439]
[1767113521910,0.06789877,88664.0,88646.0,0.29439]
[1767113522109,0.01127878,88662.0,88646.0,0.29439]
[1767113522309,0.01127866,88663.0,88646.0,0.29439]
[1767113522669,0.0002273,88664.0,88646.0,0.29439]
[1767113523032,0.0002273,88664.0,88656.0,0.28303]
[1767113523033,3e-07,88664.0,88656.0,0.28303]
[1767113523249,3e-07,88664.0,88658.0,0.28303]
[1767113523599,0.05638026,88684.0,88658.0,0.28303]
[1767113523737,0.01127624,88682.0,88658.0,0.28303]
[1767113523938,0.01127637,88681.0,88658.0,0.28303]
[1767113524142,0.00033426,88677.0,88658.0,0.28303]
[1767113524829,1.226e-05,88677.0,88661.0,0.01127891]
[1767113525010,1.226e-05,88677.0,88662.0,0.28303]
[1767113528978,1.226e-05,88677.0,88662.0,0.29430878]
[1767113529260,1.226e-05,88677.0,88665.0,0.28303]
[1767113529455,1.226e-05,88677.0,88667.0,0.28303]
[1767113531129,1.226e-05,88677.0,88661.0,0.04516]
[1767113531130,0.000549,88667.0,88661.0,0.28303]
[1767113531492,0.000549,88667.0,88662.0,0.29439]
[1767113531622,0.07300726,88674.0,88662.0,0.29439]
[1767113531623,0.01127751,88672.0,88663.0,0.01136]
[1767113532369,0.01127738,88673.0,88663.0,0.01136]
[1767113532550,0.01127751,88672.0,88663.0,0.010811]
[1767113532908,0.01127738,88673.0,88663.0,0.010811]
[1767113533344,0.05037,88665.0,88653.0,0.01136]
[1767113533746,0.01127764,88671.0,88653.0,0.29439]
[1767113533943,0.01127777,88670.0,88655.0,0.28303]
[1767113534739,0.01127713,88675.0,88657.0,0.28303]
[1767113534941,1.226e-05,88677.0,88657.0,0.28303]
[1767113535341,0.01128914,88677.0,88657.0,0.28303]
[1767113535775,0.01127738,88673.0,88657.0,0.28303]
[1767113535943,0.05638569,88675.0,88657.0,0.28303]
[1767113536149,0.01127726,88674.0,88657.0,0.28303]
[1767113536562,0.05,88667.0,88657.0,0.28303]
[1767113536783,0.049451,88667.0,88657.0,0.27296]
[1767113545371,0.03587245,88667.0,88657.0,0.27296]
[1767113545569,0.0112756,88687.0,88662.0,0.27296]
[1767113545810,0.01127586,88685.0,88664.0,0.27296]
[1767113545967,0.01127611,88683.0,88664.0,0.27296]
[1767113546502,0.09751599,88684.0,88664.0,0.27296]
[1767113547097,0.01127611,88683.0,88664.0,0.27296]
[1767113547298,0.01127624,88682.0,88664.0,0.27296]
[1767113547496,0.06765714,88683.0,88664.0,0.27296]
[1767113547703,0.01127637,88681.0,88664.0,0.27296]
[1767113548162,0.08624,88684.0,88664.0,0.27296]
[1767113548306,0.01127522,88690.0,88668.0,0.27296]
[1767113548501,0.01127535,88689.0,88668.0,0.27296]
[1767113548714,0.01127522,88690.0,88668.0,0.27296]
[1767113548922,0.0002273,88691.0,88668.0,0.28423802]
[1767113549128,0.0115024,88691.0,88668.0,0.27296]
[1767113549325,0.01127522,88690.0,88668.0,0.27296]
[1767113549502,0.0115024,88691.0,88668.0,0.27296]
[1767113549733,0.01127522,88690.0,88668.0,0.27296]
[1767113549929,0.0115024,88691.0,88668.0,0.27296]
[1767113550129,0.01127522,88690.0,88668.0,0.27296]
[1767113550332,0.0002273,88691.0,88668.0,0.28423802]
[1767113550655,0.01127522,88690.0,88668.0,0.27296]
[1767113550854,0.0115024,88691.0,88668.0,0.27296]
[1767113551035,0.0002273,88691.0,88668.0,0.28423802]
[1767113551244,0.0002273,88691.0,88668.0,0.27296]
[1767113551455,0.0115024,88691.0,88668.0,0.27296]
[1767113551658,0.0002273,88691.0,88670.0,0.27296]
[1767113551854,0.0002273,88691.0,88672.0,0.27296]
[1767113552352,0.0115024,88691.0,88672.0,0.27296]
[1767113552552,0.0002273,88691.0,88672.0,0.27296]
[1767113554059,0.0115024,88691.0,88672.0,0.27296]
[1767113555097,0.0002273,88691.0,88672.0,0.27296]
[1767113557490,0.0002273,88691.0,88675.0,0.27296]
[1767113558249,0.0002273,88691.0,88675.0,0.32934556]
[1767113559356,0.0002273,88691.0,88675.0,0.27296]
[1767113564154,0.01127522,88690.0,88676.0,0.01136]
[1767113564356,0.0864673,88691.0,88675.0,0.272411]
[1767113564559,0.0864673,88691.0,88676.0,0.01136]
[1767113565198,0.01127548,88688.0,88676.0,0.01136]
[1767113565507,0.0980656,88687.0,88676.0,0.01136]
[1767113565917,0.08679,88687.0,88676.0,0.01136]
[1767113566326,0.0980656,88687.0,88676.0,0.01136]
[1767113567411,0.08679,88686.0,88676.0,0.01136]
[1767113567797,0.08679,88688.0,88660.0,0.28325]
[1767113567996,0.01127573,88686.0,88670.0,0.28325]
[1767113568200,0.01127599,88684.0,88671.0,0.01136]
[1767113568408,0.01127586,88685.0,88671.0,0.01136]
[1767113568606,0.06765099,88691.0,88672.0,0.28325]
[1767113568821,0.08679,88688.0,88672.0,0.28325]
[1767113569570,0.01127535,88689.0,88672.0,0.28325]
[1767113569805,0.01127548,88688.0,88672.0,0.28325]
[1767113570136,0.01127535,88689.0,88672.0,0.28325]
[1767113570355,0.01127548,88688.0,88672.0,0.28325]
[1767113571096,0.0112756,88687.0,88672.0,0.28325]
[1767113571593,0.01127573,88686.0,88672.0,0.28325]
[1767113571839,0.01127586,88685.0,88672.0,0.28325]
[1767113572034,0.0112756,88687.0,88672.0,0.28325]
[1767113572552,0.01127573,88686.0,88672.0,0.28325]
[1767113572993,0.01127586,88685.0,88672.0,0.28325]
[1767113573355,0.01127573,88686.0,88672.0,0.28325]
[1767113573752,0.0112756,88687.0,88672.0,0.28325]
[1767113574599,0.01127548,88688.0,88672.0,0.28325]
[1767113575521,0.63325576,88690.0,88672.0,0.28325]
[1767113575872,0.01127548,88688.0,88672.0,0.28325]
[1767113576076,0.64453098,88690.0,88672.0,0.28325]
[1767113576276,0.01127535,88689.0,88672.0,0.28325]
[1767113576508,0.01127573,88686.0,88672.0,0.28325]
[1767113577023,0.01127548,88688.0,88672.0,0.28325]
[1767113577240,0.0112756,88687.0,88672.0,0.28325]
[1767113577388,0.01127573,88686.0,88672.0,0.28325]
[1767113577613,0.01127548,88688.0,88672.0,0.28325]
[1767113578016,0.0112756,88687.0,88672.0,0.28325]
[1767113578215,0.01127548,88688.0,88672.0,0.28325]
[1767113578530,0.60284244,88690.0,88672.0,0.28325]
[1767113578770,0.60284244,88690.0,88671.0,0.01136]
[1767113578771,0.01127637,88681.0,88671.0,0.01136]
[1767113578905,0.01127764,88671.0,88664.0,0.01136]
[1767113579110,0.07707,88671.0,88662.0,0.01136]
[1767113579391,0.01127726,88674.0,88662.0,0.01136]
[1767113579536,0.01127713,88675.0,88663.0,0.29417]
[1767113579740,0.01128914,88677.0,88663.0,0.29417]
[1767113579970,1.226e-05,88677.0,88663.0,0.29417]
[1767113580178,1.226e-05,88677.0,88662.0,0.01136]
[1767113580179,1.226e-05,88677.0,88668.0,0.29417]
[1767113580307,1.226e-05,88677.0,88670.0,0.29417]
[1767113581231,1.226e-05,88677.0,88669.0,0.01136]
[1767113582027,1.226e-05,88677.0,88669.0,0.30553]
[1767113583875,0.08834713,88675.0,88669.0,0.0091387]
[1767113584028,0.05638515,88676.0,88669.0,0.0091387]
[1767113584229,0.011277,88676.0,88669.0,0.0091387]
[1767113585616,0.07708226,88677.0,88669.0,0.0091387]
[1767113586121,0.011277,88676.0,88669.0,0.0091387]
[1767113586474,0.01127713,88675.0,88669.0,0.0091387]
[1767113586875,0.08835914,88677.0,88669.0,0.0091387]
[1767113587071,0.07707,88675.0,88669.0,0.0091387]
[1767113587325,0.01127726,88674.0,88669.0,0.0091387]
[1767113587486,0.01127738,88673.0,88669.0,0.0091387]
[1767113587894,0.07707,88674.0,88669.0,0.0091387]
[1767113588088,0.08834726,88674.0,88669.0,0.0091387]
[1767113588289,0.08834726,88674.0,88662.0,0.01136]
[1767113588290,0.07707,88672.0,88662.0,0.01136]
[1767113588519,0.62353576,88672.0,88662.0,0.01136]
[1767113589218,0.01127573,88686.0,88662.0,0.01136]
[1767113589219,0.000251,88695.0,88675.0,0.29417]
[1767113589418,0.000251,88695.0,88684.0,0.29417]
[1767113589624,0.000251,88695.0,88684.0,0.30553]
[1767113590199,0.0112756,88687.0,88684.0,0.01136]
[1767113590441,0.01127535,88689.0,88684.0,0.01136]
[1767113590966,0.01127522,88690.0,88684.0,0.01136]
[1767113591324,0.07707,88692.0,88684.0,0.01136]
[1767113591666,0.01152559,88695.0,88684.0,0.01136]
[1767113591862,0.01127471,88694.0,88684.0,0.01136]
[1767113594203,0.06795892,88695.0,88684.0,0.01136]
[1767113594403,0.01158587,88695.0,88684.0,0.01136]
[1767113594634,0.00031128,88695.0,88684.0,0.30553]
[1767113595028,0.01127471,88694.0,88684.0,0.30553]
[1767113595462,0.01127624,88682.0,88671.0,0.01136]
[1767113595777,0.05637975,88685.0,88671.0,0.01136]
[1767113595778,0.01127586,88685.0,88671.0,0.01136]
[1767113595994,0.06765324,88688.0,88671.0,0.30553]
[1767113595995,0.0112756,88687.0,88671.0,0.30553]
[1767113596238,0.01127522,88690.0,88671.0,0.30553]
[1767113596747,0.0112751,88691.0,88671.0,0.30553]
[1767113596953,0.01127522,88690.0,88671.0,0.30553]
[1767113597161,0.0112751,88691.0,88671.0,0.30553]
[1767113597578,0.01167128,88695.0,88691.0,0.000549]
[1767113597786,0.0112756,88687.0,88676.0,0.01136]
[1767113597912,0.01127637,88681.0,88676.0,0.010811]
[1767113598114,0.01127624,88682.0,88676.0,0.010811]
[1767113598611,0.01127611,88683.0,88676.0,0.010811]
[1767113599255,0.07652,88680.0,88676.0,0.010811]
[1767113599452,0.07652,88680.0,88661.0,0.04512]
[1767113599453,0.07652,88679.0,88665.0,0.01136]
[1767113599656,0.01127688,88677.0,88665.0,0.01136]
[1767113599910,0.01127675,88678.0,88665.0,0.01136]
[1767113600252,0.0112751,88691.0,88666.0,0.27066]
[1767113600425,0.0112751,88691.0,88679.0,0.27066]
[1767113600601,0.01127471,88694.0,88681.0,0.27066]
[1767113601081,0.01158587,88695.0,88681.0,0.27066]
[1767113601288,0.01127471,88694.0,88681.0,0.27066]
[1767113601525,0.01127484,88693.0,88681.0,0.27066]
[1767113601942,0.05637798,88688.0,88681.0,0.27066]
[1767113602087,0.01127611,88683.0,88680.0,0.01136]
[1767113602273,0.01127611,88683.0,88675.0,0.01136]
[1767113602473,0.06516,88686.0,88675.0,0.01136]
[1767113602474,0.07643573,88686.0,88675.0,0.01136]
[1767113602827,0.01127586,88685.0,88675.0,0.01136]
[1767113603327,0.06765418,88687.0,88675.0,0.01136]
[1767113603328,0.05637647,88690.0,88675.0,0.01136]
[1767113603540,0.0112751,88691.0,88676.0,0.27066]
[1767113603741,0.01127535,88689.0,88676.0,0.27066]
[1767113603957,0.01127522,88690.0,88676.0,0.27066]
[1767113604136,0.01127548,88688.0,88676.0,0.27066]
[1767113604514,0.01127522,88690.0,88676.0,0.27066]
[1767113604680,0.00031128,88695.0,88676.0,0.27066]
[1767113604877,0.01158587,88695.0,88676.0,0.27066]
[1767113605076,0.00031128,88695.0,88676.0,0.27066]
[1767113605711,0.04068869,88695.0,88676.0,0.27066]
[1767113606111,0.01158587,88695.0,88676.0,0.27066]
[1767113606310,0.00031128,88695.0,88676.0,0.27066]
[1767113607448,0.25605396,88712.0,88696.0,0.27066]
[1767113607449,0.00057033,88712.0,88696.0,0.27066]
[1767113607612,0.00057033,88712.0,88689.0,0.05637663]
[1767113607613,1e-07,88708.0,88699.0,0.27066]
[1767113608165,1e-07,88708.0,88697.0,0.01136]
[1767113608764,1e-07,88708.0,88697.0,0.28202]
[1767113609247,0.01127319,88706.0,88697.0,0.28202]
[1767113609449,0.01127357,88703.0,88697.0,0.01136]
[1767113609636,0.0112737,88702.0,88697.0,0.01136]
[1767113609997,0.01127357,88703.0,88691.0,0.01136]
[1767113609998,0.06538,88700.0,88691.0,0.01136]
[1767113610201,0.01127332,88705.0,88691.0,0.01136]
[1767113610379,0.07665319,88706.0,88691.0,0.28202]
[1767113611467,0.01127306,88707.0,88691.0,0.28202]
[1767113611691,0.01127304,88708.0,88691.0,0.28202]
[1767113612135,1e-07,88708.0,88691.0,0.28202]
[1767113613001,1e-07,88708.0,88699.0,0.27066]
[1767113613352,1e-07,88708.0,88701.0,0.27066]
[1767113614696,0.00057033,88712.0,88700.0,0.01136]
[1767113614895,0.01007033,88719.0,88701.0,0.27066]
[1767113615135,0.01127154,88719.0,88701.0,0.27066]
[1767113615331,0.01127141,88720.0,88701.0,0.27066]
[1767113615555,0.01127179,88717.0,88701.0,0.27066]
[1767113615756,0.01127141,88720.0,88701.0,0.27066]
[1767113616079,0.01127179,88717.0,88701.0,0.27066]
[1767113616215,0.01127154,88719.0,88701.0,0.27066]
[1767113616421,0.01127166,88718.0,88701.0,0.27066]
[1767113616614,0.01127154,88719.0,88701.0,0.27066]